bitfinex/quotes_BTCUSD_20241117
["timestamp","ask_amount","ask_price","bid_price","bid_amount"]
[1731876679368,0.24305001,89668.0,89660.0,0.002]
[1731876679631,0.111527,89665.0,89660.0,0.002]
[1731876680122,0.111527,89664.0,89660.0,0.003]
[1731876680358,0.111527,89664.0,89660.0,0.002]
[1731876680572,0.111527,89664.0,89659.0,0.111533]
[1731876680792,0.111527,89664.0,89660.0,0.001]
[1731876681014,0.223049,89666.0,89660.0,0.001]
[1731876681015,0.0764,89676.0,89661.0,0.0022303]
[1731876681264,0.223012,89681.0,89669.0,0.111521]
[1731876681265,0.1132242,89675.0,89669.0,0.111521]
[1731876681485,0.0017102,89675.0,89661.0,0.10906255]
[1731876681714,0.0017102,89675.0,89670.0,0.111518]
[1731876681715,0.0042674,89674.0,89670.0,0.111518]
[1731876682232,0.1157824,89674.0,89669.0,0.11152]
[1731876683129,0.0042674,89674.0,89661.0,0.11206255]
[1731876683358,0.0042674,89674.0,89673.0,0.111516]
[1731876683855,0.0042674,89674.0,89665.0,0.1]
[1731876683856,0.0017102,89675.0,89674.0,0.111515]
[1731876684306,0.00598969,89675.0,89674.0,0.111515]
[1731876684527,0.0017102,89675.0,89673.0,0.001]
[1731876684764,0.111515,89674.0,89673.0,0.002]
[1731876684985,0.111515,89674.0,89673.0,0.001]
[1731876685210,0.11578976,89674.0,89673.0,0.001]
[1731876685870,0.11578976,89674.0,89673.0,0.002]
[1731876686085,0.11578976,89674.0,89673.0,0.001]
[1731876686751,0.00427476,89674.0,89673.0,0.001]
[1731876687436,0.00427476,89674.0,89673.0,0.003]
[1731876687700,0.0017102,89675.0,89673.0,0.003]
[1731876687918,0.0017102,89675.0,89673.0,0.114516]
[1731876688134,0.0042837,89674.0,89673.0,0.003]
[1731876688778,0.0042837,89674.0,89673.0,0.001]
[1731876688994,0.0042837,89674.0,89673.0,0.003]
[1731876689255,0.0017102,89675.0,89673.0,0.002]
[1731876689482,0.0042837,89674.0,89673.0,0.114516]
[1731876689699,0.0017102,89675.0,89673.0,0.114516]
[1731876689924,0.0017102,89675.0,89674.0,0.11374495]
[1731876690147,0.00428158,89674.0,89673.0,0.113516]
[1731876690389,0.0017102,89675.0,89674.0,0.111515]
[1731876691261,0.0017102,89675.0,89674.0,0.114515]
[1731876692040,0.0017102,89675.0,89674.0,0.112515]
[1731876692259,0.0017102,89675.0,89674.0,0.114515]
[1731876692483,0.0017102,89675.0,89674.0,0.113515]
[1731876692705,0.0017102,89675.0,89674.0,0.003]
[1731876693200,0.1911232,89675.0,89674.0,0.003]
[1731876693639,0.19543072,89675.0,89674.0,0.003]
[1731876694412,0.19543072,89675.0,89674.0,0.002]
[1731876694640,0.111528,89663.0,89657.0,0.1]
[1731876695883,0.223035,89672.0,89660.0,0.111532]
[1731876696142,0.223035,89672.0,89657.0,0.002]
[1731876696143,0.189434,89658.0,89657.0,0.002]
[1731876696359,0.189434,89658.0,89657.0,0.003]
[1731876696584,0.19370906,89658.0,89657.0,0.003]
[1731876696799,0.19370906,89658.0,89657.0,0.002]
[1731876697262,0.111542,89653.0,89650.0,0.0008545]
[1731876697502,0.223077,89655.0,89650.0,0.0008545]
[1731876697719,0.00430141,89652.0,89650.0,0.0008545]
[1731876697938,0.111543,89652.0,89650.0,0.0008545]
[1731876698371,0.00427192,89651.0,89650.0,0.0008545]
[1731876698839,0.111542,89652.0,89650.0,0.0008545]
[1731876699053,0.00427299,89651.0,89650.0,0.0008545]
[1731876699323,0.00427299,89651.0,89650.0,0.0028545]
[1731876699532,0.11581599,89651.0,89650.0,0.0028545]
[1731876699963,0.24361599,89651.0,89650.0,0.0028545]
[1731876700183,0.24361599,89651.0,89650.0,0.0038545]
[1731876700633,0.24361599,89651.0,89650.0,0.0008545]
[1731876700877,0.24561599,89651.0,89650.0,0.0038545]
[1731876701121,0.24561599,89651.0,89650.0,0.0018545]
[1731876701566,0.35967854,89651.0,89650.0,0.0038545]
[1731876701805,0.35967854,89651.0,89650.0,0.0018545]
[1731876702062,0.24361599,89651.0,89650.0,0.0028545]
[1731876702540,0.19661599,89651.0,89650.0,0.0038545]
[1731876703416,0.11581599,89651.0,89650.0,0.0038545]
[1731876703635,0.00427299,89651.0,89650.0,0.0038545]
[1731876704083,0.00425032,89651.0,89650.0,0.0018545]
[1731876704328,0.00425032,89651.0,89650.0,0.0038545]
[1731876704583,0.11579332,89651.0,89650.0,0.0018545]
[1731876704796,0.11579332,89651.0,89650.0,0.0038545]
[1731876705265,0.11579332,89651.0,89650.0,0.0028545]
[1731876705483,0.11579332,89651.0,89650.0,0.0038545]
[1731876705706,0.00425032,89651.0,89650.0,0.0038545]
[1731876705926,0.11154,89654.0,89650.0,0.0028545]
[1731876706136,0.00425032,89651.0,89650.0,0.0038545]
[1731876706347,0.11154,89654.0,89650.0,0.0038545]
[1731876706574,0.26164415,89732.0,89650.0,0.0038545]
[1731876706575,0.00425032,89651.0,89650.0,0.0038545]
[1731876706785,0.11153,89662.0,89655.0,0.111537]
[1731876706970,0.16735001,89658.0,89655.0,0.111537]
[1731876707258,0.00426095,89661.0,89660.0,0.111532]
[1731876707473,0.194525,89666.0,89650.0,0.0028545]
[1731876707474,0.083,89666.0,89650.0,0.0028545]
[1731876707694,0.111519,89671.0,89652.0,0.123]
[1731876707903,0.16735001,89667.0,89665.0,0.111525]
[1731876708120,0.16735001,89667.0,89662.0,0.223057]
[1731876708351,0.194516,89673.0,89666.0,0.111524]
[1731876708585,0.306017,89680.0,89668.0,0.223045]
[1731876708815,0.16735001,89673.0,89672.0,0.111517]
[1731876709039,0.223002,89685.0,89672.0,0.10906255]
[1731876709277,0.111502,89684.0,89674.0,0.111515]
[1731876710164,0.3077,89690.0,89674.0,0.111515]
[1731876710595,0.1115,89686.0,89674.0,0.111515]
[1731876710819,0.3077,89690.0,89674.0,0.111515]
[1731876711045,0.111502,89684.0,89674.0,0.112515]
[1731876711263,0.111502,89684.0,89674.0,0.11277701]
[1731876711708,0.08471,89690.0,89674.0,0.2240694]
[1731876711966,0.08471,89690.0,89674.0,0.22183956]
[1731876712165,0.27884901,89687.0,89674.0,0.22283956]
[1731876712381,0.16735001,89687.0,89674.0,0.22369396]
[1731876712831,0.16735001,89687.0,89674.0,0.22269396]
[1731876713047,0.16735001,89687.0,89674.0,0.22369396]
[1731876713289,0.16735001,89687.0,89674.0,0.22269396]
[1731876713927,0.27884901,89687.0,89674.0,0.22269396]
[1731876714151,0.223006,89684.0,89674.0,0.22369396]
[1731876714405,0.16735001,89687.0,89674.0,0.22369396]
[1731876714661,0.16735001,89687.0,89674.0,0.22469396]
[1731876714885,0.16735001,89687.0,89674.0,0.22169396]
[1731876715321,0.16735001,89687.0,89674.0,0.22269396]
[1731876715546,0.16735001,89687.0,89674.0,0.2249237]
[1731876715760,0.16735001,89687.0,89674.0,0.22269396]
[1731876716229,0.16735001,89687.0,89674.0,0.32269396]
[1731876717107,0.16735001,89687.0,89674.0,0.32169396]
[1731876717323,0.16735001,89687.0,89674.0,0.32269396]
[1731876717793,0.16735001,89687.0,89674.0,0.32169396]
[1731876718010,0.16735001,89687.0,89674.0,0.32269396]
[1731876718224,0.16735001,89687.0,89674.0,0.32169396]
[1731876718451,0.16735001,89687.0,89674.0,0.32369396]
[1731876718874,0.16735001,89687.0,89674.0,0.32269396]
[1731876719308,0.16735001,89687.0,89674.0,0.32369396]
[1731876719701,0.16735001,89687.0,89674.0,0.32269396]
[1731876720195,0.08471,89690.0,89674.0,0.34569396]
[1731876720414,0.16735001,89686.0,89674.0,0.34469396]
[1731876720629,0.16735001,89686.0,89674.0,0.34569396]
[1731876721084,0.16735001,89686.0,89674.0,0.34669396]
[1731876721300,0.16735001,89686.0,89674.0,0.34769396]
[1731876721520,0.16735001,89686.0,89674.0,0.34469396]
[1731876721982,0.16735001,89686.0,89674.0,0.34669396]
[1731876722425,0.16735001,89686.0,89674.0,0.34569396]
[1731876722890,0.16735001,89686.0,89674.0,0.34669396]
[1731876723787,0.16735001,89686.0,89674.0,0.34569396]
[1731876724006,0.16735001,89686.0,89674.0,0.34469396]
[1731876724222,0.16735001,89686.0,89674.0,0.34569396]
[1731876724445,0.39035001,89686.0,89674.0,0.32369396]
[1731876724682,0.39035001,89686.0,89674.0,0.32269396]
[1731876724907,0.111504,89683.0,89674.0,0.32369396]
[1731876725121,0.111501,89685.0,89674.0,0.32269396]
[1731876725844,0.39035001,89686.0,89674.0,0.32369396]
[1731876726117,0.111503,89684.0,89674.0,0.32369396]
[1731876726322,0.111503,89684.0,89674.0,0.32369393]
[1731876726747,0.22301,89682.0,89674.0,0.32369393]
[1731876726966,0.111506,89681.0,89674.0,0.32369393]
[1731876727193,0.111504,89683.0,89674.0,0.32369393]
[1731876727429,0.111504,89683.0,89674.0,0.32269393]
[1731876727635,0.39035001,89686.0,89674.0,0.32369393]
[1731876727636,0.111502,89684.0,89674.0,0.32369393]
[1731876728509,0.111503,89683.0,89674.0,0.32369393]
[1731876729676,0.39035001,89686.0,89674.0,0.32369393]
[1731876729861,0.111503,89684.0,89674.0,0.32369393]
[1731876730775,0.39035001,89686.0,89674.0,0.32369393]
[1731876730776,0.111504,89683.0,89674.0,0.32369393]
[1731876731067,0.39035001,89686.0,89674.0,0.32369393]
[1731876731068,0.223011,89682.0,89674.0,0.10311638]
[1731876731321,0.223011,89682.0,89674.0,0.00311638]
[1731876731322,0.1951232,89675.0,89674.0,0.00311638]
[1731876731555,0.19943877,89675.0,89674.0,0.00311638]
[1731876732053,0.19943877,89675.0,89674.0,0.00211638]
[1731876732317,0.20143877,89675.0,89674.0,0.00311638]
[1731876732562,0.24673877,89675.0,89674.0,0.00311638]
[1731876732814,0.24473877,89675.0,89674.0,0.00311638]
[1731876733042,0.25473877,89675.0,89674.0,0.00311637]
[1731876733265,0.25673877,89675.0,89674.0,0.00211637]
[1731876733481,0.25673877,89675.0,89674.0,0.00111637]
[1731876733698,0.25673877,89675.0,89674.0,0.00211637]
[1731876734140,0.25673877,89675.0,89674.0,0.00311637]
[1731876734357,0.25673877,89675.0,89674.0,0.00211637]
[1731876734581,0.25673877,89675.0,89674.0,0.00311637]
[1731876735468,0.36803271,89675.0,89674.0,0.00311637]
[1731876735688,0.238737,89656.0,89655.0,0.0008544]
[1731876736139,0.24301262,89656.0,89655.0,0.0008544]
[1731876736369,0.08617562,89656.0,89655.0,0.0008544]
[1731876736812,0.08617562,89656.0,89655.0,0.0018544]
[1731876737028,0.19771262,89656.0,89655.0,0.0018544]
[1731876737240,0.19771262,89656.0,89655.0,0.0028544]
[1731876738166,0.24411262,89656.0,89655.0,0.0028544]
[1731876739542,0.24411262,89656.0,89655.0,0.0018544]
[1731876739989,0.24411262,89656.0,89655.0,0.0008544]
[1731876740429,0.25111262,89656.0,89655.0,0.0008544]
[1731876741117,0.36740656,89656.0,89655.0,0.0008544]
[1731876741331,0.36517517,89656.0,89655.0,0.0008544]
[1731876742503,0.36517517,89656.0,89650.0,0.0008545]
[1731876742504,0.250043,89651.0,89650.0,0.0008545]
[1731876742747,0.46133694,89651.0,89650.0,0.0008545]
[1731876742976,0.46384164,89651.0,89650.0,0.0008545]
[1731876743211,0.00473609,89651.0,89650.0,0.0008545]
[1731876743675,0.250043,89651.0,89650.0,0.0008545]
[1731876743929,0.2674047,89651.0,89650.0,0.0028545]
[1731876744158,0.25342129,89651.0,89650.0,0.0008545]
[1731876744437,0.13487829,89651.0,89650.0,0.0008545]
[1731876744673,0.08797829,89651.0,89650.0,0.0018545]
[1731876744889,0.08797829,89651.0,89650.0,0.0008545]
[1731876745107,0.08797829,89651.0,89650.0,0.0018545]
[1731876745384,0.19952129,89651.0,89650.0,0.0018545]
[1731876746330,0.08797829,89651.0,89650.0,0.0008545]
[1731876746548,0.08797829,89651.0,89650.0,0.0018545]
[1731876746549,0.00837829,89651.0,89650.0,0.0018545]
[1731876746985,0.0008544,89655.0,89650.0,0.0008545]
[1731876747207,0.0008544,89655.0,89650.0,0.0018545]
[1731876747208,0.00837829,89651.0,89650.0,0.0018545]
[1731876747446,0.0008544,89655.0,89650.0,0.0008545]
[1731876747658,0.00747888,89651.0,89650.0,0.0008545]
[1731876747908,0.0008544,89655.0,89650.0,0.0018545]
[1731876748413,0.00747649,89654.0,89650.0,0.0028545]
[1731876748646,0.00747649,89654.0,89650.0,0.1143985]
[1731876749144,0.00747649,89654.0,89653.0,0.111541]
[1731876749389,0.00747649,89654.0,89653.0,0.22060355]
[1731876749599,0.0008544,89655.0,89650.0,0.0008545]
[1731876749825,0.0008544,89655.0,89654.0,0.111539]
[1731876751142,0.0008544,89655.0,89654.0,0.112539]
[1731876752477,0.2388924,89655.0,89654.0,0.001]
[1731876752773,0.2438924,89655.0,89654.0,0.001]
[1731876753010,0.2525172,89655.0,89654.0,0.001]
[1731876753478,0.118543,89651.0,89650.0,0.0008545]
[1731876753947,0.12717314,89651.0,89650.0,0.0008545]
[1731876754419,0.12517314,89651.0,89650.0,0.0008545]
[1731876755845,0.12517314,89651.0,89650.0,0.0018545]
[1731876756062,0.12517314,89651.0,89650.0,0.0008545]
[1731876756527,0.12517314,89651.0,89650.0,0.0018545]
[1731876756978,0.01363014,89651.0,89650.0,0.0018545]
[1731876757195,0.01363014,89651.0,89650.0,0.001]
[1731876757407,0.12517314,89651.0,89650.0,0.001]
[1731876757630,0.01363014,89651.0,89650.0,0.001]
[1731876758099,0.12517314,89651.0,89650.0,0.001]
[1731876758337,0.13017314,89651.0,89650.0,0.001]
[1731876758566,0.13017314,89651.0,89650.0,0.0018546]
[1731876759280,0.20927314,89651.0,89650.0,0.0008546]
[1731876759517,0.20927314,89651.0,89650.0,0.0018546]
[1731876759735,0.21127314,89651.0,89650.0,0.0018546]
[1731876760384,0.20427314,89651.0,89650.0,0.0008546]
[1731876760649,0.20927314,89651.0,89650.0,0.0018546]
[1731876761554,0.20627314,89651.0,89650.0,0.0018546]
[1731876761780,0.20427314,89651.0,89650.0,0.0018546]
[1731876762907,0.20427314,89651.0,89650.0,0.0008546]
[1731876763127,0.20427314,89651.0,89650.0,0.0018546]
[1731876763563,0.20427314,89651.0,89650.0,0.1133986]
[1731876763564,0.00863014,89651.0,89650.0,0.1133986]
[1731876763811,0.0017092,89655.0,89650.0,0.1133986]
[1731876764027,0.0017092,89655.0,89651.0,0.111542]
[1731876764242,0.00875787,89654.0,89651.0,0.111542]
[1731876764897,0.00875787,89654.0,89650.0,0.0018546]
[1731876765083,0.12029787,89654.0,89650.0,0.0018546]
[1731876765565,0.12029787,89654.0,89650.0,0.0008546]
[1731876766017,0.00875787,89654.0,89650.0,0.1123986]
[1731876766241,0.00875787,89654.0,89651.0,0.223086]
[1731876766456,0.00875787,89654.0,89653.0,0.111541]
[1731876766685,0.0017092,89655.0,89654.0,0.111539]
[1731876766929,0.0017092,89655.0,89654.0,0.22060155]
[1731876767166,0.0017092,89655.0,89654.0,0.34360155]
[1731876770277,0.0017092,89655.0,89654.0,0.54315633]
[1731876770756,0.0017092,89655.0,89654.0,0.3897571]
[1731876770979,0.0017092,89655.0,89654.0,0.58946703]
[1731876771200,0.0017092,89655.0,89654.0,0.3897571]
[1731876771420,0.0017092,89655.0,89654.0,0.58946703]
[1731876771848,0.0017092,89655.0,89654.0,0.58948062]
[1731876772086,0.0017092,89655.0,89654.0,0.3897571]
[1731876772509,0.0017092,89655.0,89654.0,0.58949708]
[1731876772738,0.0017092,89655.0,89654.0,0.4569571]
[1731876773167,0.0017092,89655.0,89654.0,0.7066115]
[1731876773374,0.0017092,89655.0,89654.0,0.5019571]
[1731876775406,0.0017092,89655.0,89654.0,0.70169608]
[1731876775660,0.0017092,89655.0,89654.0,0.5019571]
[1731876776321,0.0017092,89655.0,89654.0,0.75162138]
[1731876777052,0.0017092,89655.0,89654.0,0.3897571]
[1731876777281,0.0017092,89655.0,89654.0,0.58953206]
[1731876777730,0.0017092,89655.0,89654.0,0.3897571]
[1731876778392,0.0017092,89655.0,89654.0,0.58950975]
[1731876778630,0.0017092,89655.0,89654.0,0.3897571]
[1731876779023,0.0017092,89655.0,89654.0,0.58950975]
[1731876779460,0.0017092,89655.0,89654.0,0.3897571]
[1731876780144,0.0017092,89655.0,89654.0,0.2897571]
[1731876780328,0.0017092,89655.0,89654.0,0.2667571]
[1731876781188,0.0785,89654.0,89650.0,0.10071861]
[1731876781418,0.0785,89654.0,89652.0,0.111541]
[1731876781643,0.0785,89654.0,89651.0,0.10906255]
[1731876781894,0.00742388,89653.0,89651.0,0.10906255]
[1731876782315,0.111543,89651.0,89650.0,0.0008546]
[1731876782962,0.00739973,89651.0,89650.0,0.0008546]
[1731876783167,0.11894273,89651.0,89650.0,0.0008546]
[1731876783665,0.11894273,89651.0,89650.0,0.1123986]
[1731876783666,0.00739973,89651.0,89650.0,0.1123986]
[1731876784120,0.0785,89654.0,89650.0,0.0008546]
[1731876784333,0.0785,89654.0,89653.0,0.111541]
[1731876784547,0.0017092,89655.0,89651.0,0.33214855]
[1731876784548,0.0017092,89655.0,89654.0,0.111539]
[1731876786029,0.0017092,89655.0,89654.0,0.32283203]
[1731876786281,0.0017092,89655.0,89654.0,0.32060155]
[1731876788460,0.0017092,89655.0,89654.0,0.34360155]
[1731876788949,0.0017092,89655.0,89654.0,0.38959352]
[1731876789612,0.0017092,89655.0,89654.0,0.45679352]
[1731876790273,0.0017092,89655.0,89654.0,0.63928602]
[1731876790504,0.0017092,89655.0,89654.0,0.38959352]
[1731876791145,0.0017092,89655.0,89654.0,0.53942636]
[1731876791355,0.0017092,89655.0,89654.0,0.38959352]
[1731876791792,0.0017092,89655.0,89654.0,0.53942765]
[1731876792003,0.0017092,89655.0,89654.0,0.38959352]
[1731876792233,0.0017092,89655.0,89654.0,0.53942799]
[1731876792452,0.0017092,89655.0,89654.0,0.36659352]
[1731876792689,0.0017092,89655.0,89654.0,0.46648925]
[1731876793561,0.0017092,89655.0,89654.0,0.46648521]
[1731876794444,0.0017092,89655.0,89654.0,0.48948521]
[1731876796019,0.0017092,89655.0,89654.0,0.38959352]
[1731876796420,0.0017092,89655.0,89654.0,0.53942645]
[1731876797098,0.0017092,89655.0,89654.0,0.38959352]
[1731876797568,0.0017092,89655.0,89654.0,0.53941571]
[1731876797794,0.0017092,89655.0,89654.0,0.38959352]
[1731876798717,0.0017092,89655.0,89654.0,0.5893423]
[1731876798927,0.0017092,89655.0,89654.0,0.38959352]
[1731876799165,0.0017092,89655.0,89654.0,0.5893423]
[1731876799625,0.0017092,89655.0,89654.0,0.38959352]
[1731876799839,0.0017092,89655.0,89654.0,0.5893423]
[1731876800945,0.0017092,89655.0,89654.0,0.38959352]
[1731876801157,0.0017092,89655.0,89654.0,0.58938602]
[1731876801373,0.0017092,89655.0,89654.0,0.38959352]
[1731876801596,0.0017092,89655.0,89654.0,0.63580148]
[1731876801836,0.0017092,89655.0,89654.0,0.43599352]
[1731876802063,0.0017092,89655.0,89654.0,0.71886364]
[1731876804121,0.0017092,89655.0,89654.0,0.76345264]
[1731876804368,0.0017092,89655.0,89654.0,0.51376667]
[1731876806153,0.0017092,89655.0,89654.0,0.46736667]
[1731876806405,0.0017092,89655.0,89654.0,0.43418252]
[1731876806629,0.0017092,89655.0,89654.0,0.46736708]
[1731876808200,0.0017092,89655.0,89654.0,0.43418252]
[1731876808612,0.0017092,89655.0,89654.0,0.46736837]
[1731876810586,0.0017092,89655.0,89654.0,0.38959352]
[1731876818705,0.0017092,89655.0,89654.0,0.15505452]
[1731876818942,0.2425472,89655.0,89654.0,0.04599197]
[1731876819176,0.005,89652.0,89650.0,0.0008546]
[1731876819417,0.240843,89651.0,89650.0,0.15105906]
[1731876819644,0.1367482,89651.0,89650.0,0.0008546]
[1731876819875,0.2482912,89651.0,89650.0,0.0008546]
[1731876821247,0.1367482,89651.0,89650.0,0.0008546]
[1731876823069,0.2482912,89651.0,89650.0,0.0008546]
[1731876828370,0.2582912,89651.0,89650.0,0.0008546]
[1731876828640,0.123544,89650.0,89649.0,0.0008545]
[1731876828873,0.249044,89650.0,89649.0,0.0008545]
[1731876829103,0.25638374,89650.0,89649.0,0.0008545]
[1731876829829,0.25861513,89650.0,89649.0,0.0008545]
[1731876831096,0.25861513,89650.0,89624.0,0.36188942]
[1731876831097,0.242064,89634.0,89631.0,0.1001387]
[1731876831316,0.005,89629.0,89628.0,0.27210939]
[1731876831564,0.1355,89629.0,89627.0,0.15020446]
[1731876831790,0.005,89624.0,89623.0,0.15020446]
[1731876832020,0.111579,89622.0,89617.0,0.111585]
[1731876832250,0.01227259,89624.0,89618.0,0.15621274]
[1731876832467,0.00726958,89621.0,89617.0,0.24600959]
[1731876832715,0.29285001,89629.0,89619.0,0.11129403]
[1731876832967,0.29285001,89629.0,89625.0,0.111574]
[1731876833213,0.29285001,89629.0,89622.0,0.111579]
[1731876833464,0.1255,89629.0,89627.0,0.111573]
[1731876833933,0.1255,89629.0,89623.0,0.22064055]
[1731876833934,0.237071,89629.0,89623.0,0.22064055]
[1731876834152,0.1255,89629.0,89627.0,0.111573]
[1731876834604,0.111566,89633.0,89627.0,0.111573]
[1731876834830,0.005,89641.0,89625.0,0.223152]
[1731876835083,0.111557,89640.0,89634.0,0.111563]
[1731876835978,0.111559,89639.0,89634.0,0.111563]
[1731876836449,0.111559,89639.0,89633.0,0.111565]
[1731876836675,0.111559,89639.0,89634.0,0.111564]
[1731876837138,0.00171,89651.0,89637.0,0.223122]
[1731876837350,0.00171,89651.0,89630.0,0.1]
[1731876837351,0.16735001,89645.0,89638.0,0.10906255]
[1731876837578,0.0755,89645.0,89642.0,0.111554]
[1731876840280,0.00171,89651.0,89643.0,0.11129348]
[1731876840540,0.00171,89651.0,89649.0,0.111545]
[1731876841195,0.00171,89651.0,89646.0,0.223099]
[1731876841196,0.00171,89651.0,89647.0,0.223097]
[1731876841487,0.00171,89651.0,89643.0,0.10906255]
[1731876841705,0.00171,89651.0,89647.0,0.111548]
[1731876841927,0.00171,89651.0,89645.0,0.223102]
[1731876841928,0.00171,89651.0,89648.0,0.111546]
[1731876842811,0.00171,89651.0,89643.0,0.10906255]
[1731876843031,0.111554,89642.0,89636.0,0.111561]
[1731876843254,0.111555,89642.0,89638.0,0.04435544]
[1731876843484,0.111555,89642.0,89637.0,0.1]
[1731876843711,0.0499,89643.0,89637.0,0.1]
[1731876843922,0.161453,89643.0,89637.0,0.21156]
[1731876844165,0.005,89639.0,89618.0,0.223169]
[1731876844418,0.111567,89632.0,89619.0,0.10906255]
[1731876844636,0.111567,89632.0,89626.0,0.111574]
[1731876844865,0.111567,89632.0,89621.0,0.223161]
[1731876844866,0.111567,89632.0,89627.0,0.111573]
[1731876845082,0.11157,89630.0,89624.0,0.111577]
[1731876845317,0.11157,89630.0,89624.0,0.22063955]
[1731876845616,0.0762,89625.0,89611.0,0.223184]
[1731876845841,0.0762,89625.0,89618.0,0.02241825]
[1731876845842,0.223154,89624.0,89618.0,0.02241825]
[1731876846063,0.223154,89624.0,89612.0,0.10906255]
[1731876846064,0.111583,89619.0,89612.0,0.10906255]
[1731876846547,0.00722773,89618.0,89612.0,0.10906255]
[1731876846769,0.00722773,89618.0,89601.0,0.223211]
[1731876846770,0.334768,89614.0,89613.0,0.02261461]
[1731876846981,0.223176,89615.0,89602.0,0.111604]
[1731876847209,0.223181,89613.0,89603.0,0.10906255]
[1731876847427,0.111595,89610.0,89603.0,0.10906255]
[1731876847659,0.111595,89610.0,89607.0,0.02186041]
[1731876847925,0.0072559,89609.0,89607.0,0.02186041]
[1731876848187,0.0762,89608.0,89607.0,0.02186041]
[1731876848444,0.19504971,89608.0,89607.0,0.02186041]
[1731876848691,0.08345271,89608.0,89600.0,0.0008558]
[1731876848906,0.111605,89601.0,89600.0,0.0008558]
[1731876849342,0.11883536,89601.0,89600.0,0.0008558]
[1731876852091,0.00723036,89601.0,89600.0,0.0008558]
[1731876852367,0.00723036,89601.0,89600.0,0.11469469]
[1731876852608,0.223177,89615.0,89600.0,0.11469469]
[1731876852609,0.27894801,89608.0,89603.0,0.111603]
[1731876852846,0.16735001,89608.0,89606.0,0.111599]
[1731876853135,0.16735001,89624.0,89621.0,0.11158]
[1731876853390,0.16735001,89624.0,89610.0,0.00223153]
[1731876853629,0.16735001,89624.0,89611.0,0.13206255]
[1731876853845,0.16735001,89624.0,89623.0,0.111578]
[1731876854081,0.16735001,89624.0,89613.0,0.246181]
[1731876854305,0.16735001,89619.0,89601.0,0.223211]
[1731876854527,0.22316,89622.0,89601.0,0.223211]
[1731876854528,0.111589,89615.0,89609.0,0.111595]
[1731876854763,0.111587,89616.0,89610.0,0.111594]
[1731876855864,0.0762,89618.0,89607.0,0.223196]
[1731876856068,0.111589,89615.0,89608.0,0.10906255]
[1731876856273,0.111589,89615.0,89608.0,0.22065855]
[1731876856488,0.111589,89615.0,89608.0,0.10906255]
[1731876856718,0.111587,89616.0,89609.0,0.111595]
[1731876857652,0.0762,89618.0,89613.0,0.11159]
[1731876857874,0.187784,89618.0,89611.0,0.111592]
[1731876858109,0.111586,89617.0,89611.0,0.111592]
[1731876858337,0.0781,89627.0,89613.0,0.1]
[1731876858550,0.111578,89623.0,89617.0,0.111585]
[1731876858778,0.11158,89622.0,89616.0,0.111586]
[1731876858987,0.11158,89622.0,89616.0,0.22064855]
[1731876859412,0.16735001,89625.0,89616.0,0.10906255]
[1731876859639,0.16735001,89625.0,89589.0,0.09973226]
[1731876859640,0.005,89620.0,89603.0,0.04635968]
[1731876859854,0.005,89625.0,89605.0,0.1]
[1731876860077,0.16735001,89623.0,89606.0,0.13206255]
[1731876860293,0.16735001,89623.0,89608.0,0.223194]
[1731876860294,0.223159,89622.0,89608.0,0.223194]
[1731876860534,0.111588,89616.0,89609.0,0.111595]
[1731876860817,0.111588,89616.0,89608.0,0.33225655]
[1731876860818,0.005,89620.0,89608.0,0.33225655]
[1731876861057,0.223169,89618.0,89610.0,0.111593]
[1731876861283,0.111587,89616.0,89610.0,0.111593]
[1731876861510,0.223171,89617.0,89610.0,0.111593]
[1731876861731,0.0064088,89615.0,89610.0,0.111593]
[1731876861956,0.111587,89616.0,89610.0,0.111593]
[1731876862184,0.00640782,89614.0,89610.0,0.111593]
[1731876862412,0.111587,89616.0,89610.0,0.111593]
[1731876862413,0.0064088,89615.0,89610.0,0.111593]
[1731876862640,0.00640463,89613.0,89610.0,0.111593]
[1731876862865,0.111585,89618.0,89612.0,0.111592]
[1731876863101,0.00641783,89612.0,89610.0,0.223189]
[1731876863327,0.005,89620.0,89611.0,0.111593]
[1731876863536,0.111587,89616.0,89611.0,0.111593]
[1731876863744,0.2295912,89619.0,89608.0,0.10906255]
[1731876863961,0.111584,89619.0,89610.0,0.111594]
[1731876864167,0.0064252,89618.0,89612.0,0.111591]
[1731876864401,0.0064252,89618.0,89610.0,0.223189]
[1731876864647,0.0064252,89617.0,89612.0,0.111591]
[1731876864857,0.1180112,89617.0,89612.0,0.111591]
[1731876865725,0.0064252,89617.0,89610.0,0.223189]
[1731876865984,0.1180112,89617.0,89611.0,0.111592]
[1731876866624,0.1180112,89617.0,89612.0,0.111591]
[1731876870488,0.1180112,89617.0,89610.0,0.26742354]
[1731876870489,0.0064252,89617.0,89616.0,0.111587]
[1731876870740,0.0017104,89630.0,89616.0,0.11129409]
[1731876870952,0.0017104,89630.0,89614.0,0.223178]
[1731876870953,0.16735001,89626.0,89625.0,0.111576]
[1731876871166,0.16735001,89626.0,89623.0,0.223156]
[1731876871167,0.00639574,89629.0,89628.0,0.111572]
[1731876871389,0.0064005,89626.0,89624.0,0.111576]
[1731876871625,0.111571,89629.0,89624.0,0.111576]
[1731876871859,0.00639859,89625.0,89624.0,0.111576]
[1731876872067,0.111571,89629.0,89624.0,0.111576]
[1731876872273,0.00641339,89625.0,89624.0,0.111576]
[1731876872546,0.111571,89629.0,89624.0,0.111576]
[1731876872777,0.00641019,89625.0,89624.0,0.111576]
[1731876872988,0.111571,89629.0,89624.0,0.111576]
[1731876873202,0.00641304,89625.0,89624.0,0.111576]
[1731876873426,0.111571,89629.0,89624.0,0.111576]
[1731876873656,0.00645368,89625.0,89624.0,0.111576]
[1731876873895,0.111571,89629.0,89624.0,0.111576]
[1731876874141,0.0064589,89625.0,89624.0,0.111576]
[1731876874366,0.111571,89629.0,89624.0,0.111576]
[1731876874610,0.0064589,89625.0,89624.0,0.111576]
[1731876874819,0.0064589,89625.0,89617.0,0.10906255]
[1731876874820,0.0017104,89630.0,89625.0,0.111575]
[1731876875878,0.1132794,89630.0,89625.0,0.111575]
[1731876876352,0.00646424,89629.0,89625.0,0.111575]
[1731876876574,0.11803624,89629.0,89623.0,0.111578]
[1731876876819,0.11803524,89629.0,89623.0,0.111578]
[1731876877063,0.11803524,89629.0,89622.0,0.1575572]
[1731876877064,0.111574,89627.0,89622.0,0.1575572]
[1731876877308,0.00647282,89628.0,89622.0,0.0459782]
[1731876877532,0.111571,89629.0,89623.0,0.111577]
[1731876877749,0.00647062,89627.0,89619.0,0.223166]
[1731876877970,0.00646105,89628.0,89623.0,0.111577]